Workbook

Sheet Instructions
A1: How to use this tool
A3: Introduction: This tool is intended to be used in order to compare the costs of buying, running and servicing a water scheme with a diesel generator vs an equivalent stand alone solar pumping solution.
A4: Costs are estimated for a period of 25 years (lifespan of solar panels, the longest of all components).
A5: Costs that are common for both systems (e.g. salary of a guard for the water scheme) have been taken out, since they would have no impact in the cost comparision analysis.
A6: Costs are calculated including pumping equipemnt (pump, genertor, solar panels, invertor and accessories). By adding additional columns, other costs could be included in the analysis if necessary.
A7: Before proceeding to use the tool, read the Word document 'Technical Briefing - Ecoonomic Assessment', where principles of Net Present Value analysis are explained.
A10: Tab 1: 'Reference Costs for Generators'
A11: Costs of Generators for Juba (South Sudan) are given on table on the left. Get prices of generators for your particular country/ location
A13: Cost of Generator servicing is given on table on the right. Different servicing costs are given depending on the working hours of the generator and the quality of brand (high or low).
A14: Thee prices are used in the cost calculation under tab 'Generator System'. Use these prices as a reference, unless you have a more accurate information on the costs for mainting a generator in your location.
A17: Tab 2: 'Generator Fuel Consumption'
A18: This table is a refernce for fuel consumption. Iedally your generator should be sized to work at 75% of its load and so you should use fuel consumption data from the 75% column.
A19: If this is not the case or you have real data from the field, feel free to use the consumption you believe is closer to reality. This data will be used in tab 'Generator System'.
A22: Tab 3: 'Generator System'
A23: In this tab total costs for buying, operating, maintaing and replacing the generator will be estimated for a period of 25 years.
A24: Fill only the cells in yellow.
A25: Get discount factor for your country at http://data.worldbank.org/indicator/FR.INR.RINR?year_high_desc=false or in the Annex a of the Word document 'Technical Briefing - Economic Assessment'.
A26: The cost of 1L of fuel should compromise costs to buy, store and transport fuel to the water scheme site.
A29: Tab 4: 'Solar (Hybrid)'
A30: In this tab total costs for buying, operating, maintaing and replacing the solar pumping part of the hybrid system will be estimated for a period of 25 years.
A31: Fill only the cells in yellow.
A32: Cost of Solar Pumping solution should include all costs involved to buy and install the solar system (including invertor).
A33: Preventive and minor service (like cleaning and 1 or 2 visits of contractor technician to the field for preventive maintenance) is estimated at a flat rate of 1,500USD. Feel free to change I ncase rea ldata are avaible.
A36: Tab 5: 'Generator (Hybrid)'
A37: In this tab total costs for buying, operating, maintaing and replacing the generator pumping part of the hybrid system will be estimated for a period of 25 years.
A38: Normally, the only difference with Tab 3 should be the annual working hours of the generator, that will be less than in Tab 3 since the solar part of the hybrid system will take over the generator during the solar day.
A39: Fill only the cells in yellow.
A42: Tab 6: 'Hybrid (Solar & Generator)'
A43: In this Tab costs for solar and generator parts of the hybrid systems are add up.
A46: Tab 7: 'Graph'
A47: A comparative graph is automatically generated. Get the Return on Investment (point were both lines cross) and the costs saving (difference between the 2 lines after 25 years) as main information.

Sheet 1 Reference Cost for Generators
A1: Diesel Genset (Indicate Brand) | C1: Prices in Juba (USD) | E1: General Reference for Maintenance of Gensets
A2: 12.5 | B2: kVA | C2: 4500
A3: 15 | B3: kVA | C3: 6000 | E3: Genset Maintenance | F3: Good Quality Engine | H3: Low Quality Engine
A4: 20 | B4: kVA | C4: 12000 | E4: Maintenance and Replacement | F4: Frequency of change (h) | G4: Price (USD) | H4: Frequency (hours) | I4: Price (USD)
A5: 30 | B5: kVA | C5: 18500 | E5: Minor Service | F5: 250 | G5: 20 | H5: 250 | I5: 20
A6: 45 | B6: kVA | C6: 22500 | E6: Major Service | F6: 1000 | G6: 180 | H6: 1000 | I6: 125
A7: 60 | B7: kVA | C7: 30000 | E7: Overhaul | F7: 10000 | G7: 30% of new | H7: 5000 | I7: 60% of new
A8: 80 | B8: kVA | C8: 34000 | E8: Replacement | F8: 35000 | G8: See 'Cost of New Gensets' | H8: 10000 | I8: See 'Cost of New Gensets'
A9: 100 | B9: kVA | C9: 40000

Sheet 2 Generator Fuel Consumption
A1: Genset Fuel Consumption chart
A2: Generator | C2: Liter/hour
A3: kVA | B3: kW | C3: Load 25% | D3: Load 50% | E3: Load 75% | F3: Load 100%
A4: 25 | B4: =A4*0.8 -> 20 | C4: 2.3 | D4: 3.4 | E4: 4.9 | F4: 6
A5: 38 | B5: 30.4 | C5: 4.2 | D5: 6.8 | E5: 9.1 | F5: 11
A6: 50 | B6: 40 | C6: 6 | D6: 8.7 | E6: 12.1 | F6: 15.1
A7: 75 | B7: 60 | C7: 6.8 | D7: 11 | E7: 14.4 | F7: 18.1
A8: 94 | B8: 75.2 | C8: 9.1 | D8: 12.9 | E8: 17.4 | F8: 23.1
A9: 125 | B9: 100 | C9: 9.8 | D9: 15.5 | E9: 21.9 | F9: 28
A10: 156 | B10: 124.8 | C10: 11.7 | D10: 18.9 | E10: 26.8 | F10: 34.4
A11: 169 | B11: 135.2 | C11: 12.5 | D11: 20.4 | E11: 28.7 | F11: 37
A12: 188 | B12: 150.4 | C12: 13.6 | D12: 22.3 | E12: 31.8 | F12: 41.2
A13: 219 | B13: 175.2 | C13: 15.5 | D13: 25.7 | E13: 36.7 | F13: 48
A14: 250 | B14: 200 | C14: 17.1 | D14: 29.1 | E14: 41.6 | F14: 54.4
A15: 288 | B15: 230.4 | C15: 20 | D15: 33.3 | E15: 47.3 | F15: 62.7
A16: 313 | B16: 250.4 | C16: 21.6 | D16: 35.9 | E16: 51.4 | F16: 68
A17: 375 | B17: 300 | C17: 25.7 | D17: 42.7 | E17: 60.9 | F17: 81.3
A18: 438 | B18: 350.4 | C18: 29.9 | D18: 49.5 | E18: 70.7 | F18: 94.9
A19: 500 | B19: 400 | C19: 33.6 | D19: 56.3 | E19: 80.5 | F19: 108.1
A20: 625 | B20: 500 | C20: 41.6 | D20: 69.9 | E20: 99.8 | F20: 134.9
A21: 750 | B21: 600 | C21: 49.9 | D21: 83.2 | E21: 119.1 | F21: 161.8
A22: 938 | B22: 750.4 | C22: 61.6 | D22: 103.6 | E22: 148.6 | F22: 201.9
A23: 1250 | B23: 1000 | C23: 81.6 | D23: 137.6 | E23: 196.9 | F23: 268.8
A24: 1563 | B24: 1250.4 | C24: 101.7 | D24: 171.2 | E24: 245.7 | F24: 335.7
A25: 1875 | B25: 1500 | C25: 121.7 | D25: 205.3 | E25: 294.1 | F25: 402.6
A26: 2188 | B26: 1750.4 | C26: 141.8 | D26: 238.9 | E26: 342.8 | F26: 469.5
A27: 2500 | B27: 2000 | C27: 161.8 | D27: 272.9 | E27: 391.5 | F27: 536.4
A28: 2813 | B28: 2250.4 | C28: 181.8 | D28: 306.6 | E28: 440 | F28: 603.3

Sheet 3 Generator System
A1: discount factor (d) | B1: 0.06 | F1: h
A2: Cost of generator (USD) | B2: 34000
A3: Cost of 1 L of fuel (USD) | B3: 1.2
A4: Year | B4: Capital Cost | C4: Generator Working time (hours/year) | D4: Cumulative hours for overhaul | E4: Cumulative hours for replacement | F4: Minor Service | G4: Major Service | H4: Fuel Consumption (l/h) | I4: Cost of fuel | J4: Overhaul | K4: Replacement | L4: Discount Factor (d) | M4: Total Costs in Present Worth (USD)
B5: (= capital cost OR 0$ in case there is already a generator in place) | F5: 20 USD every 250h | G5: 180 USD every 1000h | J5: 30% genset cost every 10,000h | K5: New genset every 35,000h
A6: 0 | B6: =B2 -> 34000 | C6: =8.3*365 -> 3029.5 | D6: =C6 -> 3029.5 | E6: =C6 -> 3029.5 | F6: =(C6/250)*20 -> 242.36 | G6: =(C6/1000)*180 -> 545.31 | H6: 11 | I6: =C6*H6*B3 -> 39989.4 | L6: =1/(1+$B$1)^A6 -> 1 | M6: =L6*(B6+F6+G6+I6+J6+K6) -> 74777.07
A7: 1 | C7: =C6 -> 3029.5 | D7: =IF(K7=0,IF(D6+C7>10000,D6+C7-10000,D6+C7),E7) -> 6059 | E7: =IF(E6+C7>35000,E6+C7-35000,E6+C7) -> 6059 | F7: 242.36 | G7: 545.31 | I7: =I6 -> 39989.4 | J7: =IF($D6+$C7>10000,$B$2*0.3,0) -> 0 | K7: =IF($E6+$C7>35000,$B$2,0) -> 0 | L7: 0.9433962264 | M7: =L7*(F7+G7+I7+J7+K7) -> 38468.93396
A8: 2 | C8: =C7 -> 3029.5 | D8: 9088.5 | E8: 9088.5 | F8: 242.36 | G8: 545.31 | I8: =I7 -> 39989.4 | J8: =IF($D7+$C8>10000,$B$2*0.3,0) -> 0 | K8: =IF($E7+$C8>35000,$B$2,0) -> 0 | L8: 0.88999644 | M8: 36291.44713
A9: 3 | C9: 3029.5 | D9: 2118 | E9: 12118 | F9: 242.36 | G9: 545.31 | I9: 39989.4 | J9: 10200 | K9: 0 | L9: 0.839619283 | M9: 42801.33096
A10: 4 | C10: 3029.5 | D10: 5147.5 | E10: 15147.5 | F10: 242.36 | G10: 545.31 | I10: 39989.4 | J10: 0 | K10: 0 | L10: 0.7920936632 | M10: 32299.25875
A11: 5 | C11: 3029.5 | D11: 8177 | E11: 18177 | F11: 242.36 | G11: 545.31 | I11: 39989.4 | J11: 0 | K11: 0 | L11: 0.7472581729 | M11: 30470.99882
A12: 6 | C12: 3029.5 | D12: 1206.5 | E12: 21206.5 | F12: 242.36 | G12: 545.31 | I12: 39989.4 | J12: 10200 | K12: 0 | L12: 0.7049605404 | M12: 35936.82282
A13: 7 | C13: 3029.5 | D13: 4236 | E13: 24236 | F13: 242.36 | G13: 545.31 | I13: 39989.4 | J13: 0 | K13: 0 | L13: 0.6650571136 | M13: 27119.08048
A14: 8 | C14: 3029.5 | D14: 7265.5 | E14: 27265.5 | F14: 242.36 | G14: 545.31 | I14: 39989.4 | J14: 0 | K14: 0 | L14: 0.6274123713 | M14: 25584.03819
A15: 9 | C15: 3029.5 | D15: 295 | E15: 30295 | F15: 242.36 | G15: 545.31 | I15: 39989.4 | J15: 10200 | K15: 0 | L15: 0.5918984635 | M15: 30173.24941
A16: 10 | C16: 3029.5 | D16: =IF(K16=0,IF(D15+C16>10000,D15+C16-10000,D15+C16),E16) -> 3324.5 | E16: 33324.5 | F16: 242.36 | G16: 545.31 | I16: 39989.4 | J16: 0 | K16: 0 | L16: 0.5583947769 | M16: 22769.70291
A17: 11 | C17: 3029.5 | D17: 1354 | E17: 1354 | F17: 242.36 | G17: 545.31 | I17: 39989.4 | J17: 0 | K17: 34000 | L17: 0.5267875254 | M17: 39391.62766
A18: 12 | C18: 3029.5 | D18: 4383.5 | E18: 4383.5 | F18: 242.36 | G18: 545.31 | I18: 39989.4 | J18: 0 | K18: 0 | L18: 0.4969693636 | M18: 20264.95453
A19: 13 | C19: 3029.5 | D19: 7413 | E19: 7413 | F19: 242.36 | G19: 545.31 | I19: 39989.4 | J19: 0 | K19: 0 | L19: 0.4688390222 | M19: 19117.88163
A20: 14 | C20: 3029.5 | D20: 442.5 | E20: 10442.5 | F20: 242.36 | G20: 545.31 | I20: 39989.4 | J20: 10200 | K20: 0 | L20: 0.4423009644 | M20: 22547.20722
A21: 15 | C21: 3029.5 | D21: 3472 | E21: 13472 | F21: 242.36 | G21: 545.31 | I21: 39989.4 | J21: 0 | K21: 0 | L21: 0.4172650607 | M21: 17014.84659
A22: 16 | C22: 3029.5 | D22: 6501.5 | E22: 16501.5 | F22: 242.36 | G22: 545.31 | I22: 39989.4 | J22: 0 | K22: 0 | L22: 0.3936462837 | M22: 16051.74207
A23: 17 | C23: 3029.5 | D23: 9531 | E23: 19531 | F23: 242.36 | G23: 545.31 | I23: 39989.4 | J23: 0 | K23: 0 | L23: 0.3713644186 | M23: 15143.15289
A24: 18 | C24: 3029.5 | D24: 2560.5 | E24: 22560.5 | F24: 242.36 | G24: 545.31 | I24: 39989.4 | J24: 10200 | K24: 0 | L24: 0.3503437911 | M24: 17859.49996
A25: 19 | C25: 3029.5 | D25: 5590 | E25: 25590 | F25: 242.36 | G25: 545.31 | I25: 39989.4 | J25: 0 | K25: 0 | L25: 0.3305130105 | M25: 13477.35217
A26: 20 | C26: 3029.5 | D26: 8619.5 | E26: 28619.5 | F26: 242.36 | G26: 545.31 | I26: 39989.4 | J26: 0 | K26: 0 | L26: 0.3118047269 | M26: 12714.48317
A27: 21 | C27: 3029.5 | D27: 1649 | E27: 31649 | F27: 242.36 | G27: 545.31 | I27: 39989.4 | J27: 10200 | K27: 0 | L27: 0.2941554027 | M27: 14995.18056
A28: 22 | C28: 3029.5 | D28: 4678.5 | E28: 34678.5 | F28: 242.36 | G28: 545.31 | I28: 39989.4 | J28: 0 | K28: 0 | L28: 0.2775050969 | M28: 11315.84476
A29: 23 | C29: 3029.5 | D29: 2708 | E29: 2708 | F29: 242.36 | G29: 545.31 | I29: 39989.4 | J29: 0 | K29: 34000 | L29: 0.2617972612 | M29: 19576.43213
A30: 24 | C30: 3029.5 | D30: 5737.5 | E30: 5737.5 | F30: 242.36 | G30: 545.31 | I30: 39989.4 | J30: 0 | K30: 0 | L30: 0.2469785483 | M30: 10071.06155
L32: TOTAL COST | M32: =SUM(M6:M31) -> 646233.2003

Sheet 4 Solar (Hybrid)
A1: discount factor (d) | B1: ='3 Generator System'!B1 -> 0.06
A2: Cost of solar (USD) | B2: 65000
A3: Cost of Invertor (USD) | B3: =200000/80 -> 2500
A4: Year | B4: Capital Cost | C4: Preventive and Minor Service and | D4: Major Service | E4: Fuel Consumption (l/h) | F4: Cost of fuel | G4: Overhaul | H4: Replacement | I4: Discount Factor (d) | J4: Present Worth (USD)
C5: Cleaning | D5: _ | G5: _ | H5: Change invertor every 7 yrs
A6: 0 | B6: =B2 -> 65000 | C6: 1500 | D6: 0 | E6: 0 | F6: 0 | I6: =1/(1+$B$1)^A6 -> 1 | J6: =I6*(B6+C6+D6+F6+G6+H6) -> 66500
A7: 1 | C7: =C6 -> 1500 | D7: =D6 -> 0 | F7: =F6 -> 0 | I7: =1/(1+$B$1)^A7 -> 0.9433962264 | J7: =I7*(C7+D7+F7+G7+H7) -> 1415.09434
A8: 2 | C8: =C7 -> 1500 | D8: =D7 -> 0 | F8: =F7 -> 0 | I8: 0.88999644 | J8: 1334.99466
A9: 3 | C9: 1500 | D9: 0 | F9: 0 | I9: 0.839619283 | J9: 1259.428925
A10: 4 | C10: 1500 | D10: 0 | F10: 0 | I10: 0.7920936632 | J10: 1188.140495
A11: 5 | C11: 1500 | D11: 0 | F11: 0 | I11: 0.7472581729 | J11: 1120.887259
A12: 6 | C12: 1500 | D12: 0 | F12: 0 | H12: =B3 -> 2500 | I12: 0.7049605404 | J12: 2819.842162
A13: 7 | C13: 1500 | D13: 0 | F13: 0 | I13: 0.6650571136 | J13: 997.5856704
A14: 8 | C14: 1500 | D14: 0 | F14: 0 | I14: 0.6274123713 | J14: 941.118557
A15: 9 | C15: 1500 | D15: 0 | F15: 0 | I15: 0.5918984635 | J15: 887.8476953
A16: 10 | C16: 1500 | D16: 0 | F16: 0 | I16: 0.5583947769 | J16: 837.5921654
A17: 11 | C17: 1500 | D17: 0 | F17: 0 | I17: 0.5267875254 | J17: 790.1812881
A18: 12 | C18: 1500 | D18: 0 | F18: 0 | I18: 0.4969693636 | J18: 745.4540454
A19: 13 | C19: 1500 | D19: 0 | F19: 0 | H19: =B3 -> 2500 | I19: 0.4688390222 | J19: 1875.356089
A20: 14 | C20: 1500 | D20: 0 | F20: 0 | I20: 0.4423009644 | J20: 663.4514466
A21: 15 | C21: 1500 | D21: 0 | F21: 0 | I21: 0.4172650607 | J21: 625.8975911
A22: 16 | C22: 1500 | D22: 0 | F22: 0 | I22: 0.3936462837 | J22: 590.4694256
A23: 17 | C23: 1500 | D23: 0 | F23: 0 | I23: 0.3713644186 | J23: 557.0466279
A24: 18 | C24: 1500 | D24: 0 | F24: 0 | I24: 0.3503437911 | J24: 525.5156867
A25: 19 | C25: 1500 | D25: 0 | F25: 0 | I25: 0.3305130105 | J25: 495.7695157
A26: 20 | C26: 1500 | D26: 0 | F26: 0 | I26: 0.3118047269 | J26: 467.7070903
A27: 21 | C27: 1500 | D27: 0 | F27: 0 | H27: =B3 -> 2500 | I27: 0.2941554027 | J27: 1176.621611
A28: 22 | C28: 1500 | D28: 0 | F28: 0 | I28: 0.2775050969 | J28: 416.2576454
A29: 23 | C29: 1500 | D29: 0 | F29: 0 | I29: 0.2617972612 | J29: 392.6958919
A30: 24 | C30: 1500 | D30: 0 | F30: 0 | I30: 0.2469785483 | J30: 370.4678225
I32: TOTAL COST | J32: =SUM(J6:J31) -> 88995.42371

Sheet 5 Generator (Hybrid)
A1: discount factor (d) | B1: 0.06 | F1: h
A2: Cost of generator (USD) | B2: 34000
A3: Cost of 1 L of fuel (USD) | B3: 1.2
A4: Year | B4: Capital Cost | C4: Generator Working time (hours/year) | D4: Cumulative hours for overhaul | E4: Cumulative hours for replacement | F4: Minor Service | G4: Major Service | H4: Fuel Consumption (l/h) | I4: Cost of fuel | J4: Overhaul | K4: Replacement | L4: Discount Factor (d) | M4: Total Costs in Present Worth (USD)
B5: (= capital cost OR 0$ in case there is already a generator in place) | F5: 20 USD every 250h | G5: 180 USD every 1000h | J5: 30% genset cost every 10,000h | K5: New genset every 35,000h
A6: 0 | B6: =B2 -> 34000 | C6: =3*365 -> 1095 | D6: =C6 -> 1095 | E6: =C6 -> 1095 | F6: =(C6/250)*20 -> 87.6 | G6: =(C6/1000)*180 -> 197.1 | H6: 11 | I6: =C6*H6*B3 -> 14454 | L6: =1/(1+$B$1)^A6 -> 1 | M6: =L6*(B6+F6+G6+I6+J6+K6) -> 48738.7
A7: 1 | C7: =C6 -> 1095 | D7: =IF(K7=0,IF(D6+C7>10000,D6+C7-10000,D6+C7),E7) -> 2190 | E7: =IF(E6+C7>35000,E6+C7-35000,E6+C7) -> 2190 | F7: 87.6 | G7: 197.1 | I7: =I6 -> 14454 | J7: =IF($D6+$C7>10000,$B$2*0.3,0) -> 0 | K7: =IF($E6+$C7>35000,$B$2,0) -> 0 | L7: 0.9433962264 | M7: =L7*(F7+G7+I7+J7+K7) -> 13904.43396
A8: 2 | C8: =C7 -> 1095 | D8: 3285 | E8: 3285 | F8: 87.6 | G8: 197.1 | I8: =I7 -> 14454 | J8: =IF($D7+$C8>10000,$B$2*0.3,0) -> 0 | K8: =IF($E7+$C8>35000,$B$2,0) -> 0 | L8: 0.88999644 | M8: 13117.39053
A9: 3 | C9: 1095 | D9: 4380 | E9: 4380 | F9: 87.6 | G9: 197.1 | I9: 14454 | J9: 0 | K9: 0 | L9: 0.839619283 | M9: 12374.89673
A10: 4 | C10: 1095 | D10: 5475 | E10: 5475 | F10: 87.6 | G10: 197.1 | I10: 14454 | J10: 0 | K10: 0 | L10: 0.7920936632 | M10: 11674.43087
A11: 5 | C11: 1095 | D11: 6570 | E11: 6570 | F11: 87.6 | G11: 197.1 | I11: 14454 | J11: 0 | K11: 0 | L11: 0.7472581729 | M11: 11013.61403
A12: 6 | C12: 1095 | D12: 7665 | E12: 7665 | F12: 87.6 | G12: 197.1 | I12: 14454 | J12: 0 | K12: 0 | L12: 0.7049605404 | M12: 10390.20192
A13: 7 | C13: 1095 | D13: 8760 | E13: 8760 | F13: 87.6 | G13: 197.1 | I13: 14454 | J13: 0 | K13: 0 | L13: 0.6650571136 | M13: 9802.077281
A14: 8 | C14: 1095 | D14: 9855 | E14: 9855 | F14: 87.6 | G14: 197.1 | I14: 14454 | J14: 0 | K14: 0 | L14: 0.6274123713 | M14: 9247.242717
A15: 9 | C15: 1095 | D15: 950 | E15: 10950 | F15: 87.6 | G15: 197.1 | I15: 14454 | J15: 10200 | K15: 0 | L15: 0.5918984635 | M15: 14761.17821
A16: 10 | C16: 1095 | D16: =IF(K16=0,IF(D15+C16>10000,D15+C16-10000,D15+C16),E16) -> 2045 | E16: 12045 | F16: 87.6 | G16: 197.1 | I16: 14454 | J16: 0 | K16: 0 | L16: 0.5583947769 | M16: 8230.013099
A17: 11 | C17: 1095 | D17: 3140 | E17: 13140 | F17: 87.6 | G17: 197.1 | I17: 14454 | J17: 0 | K17: 0 | L17: 0.5267875254 | M17: 7764.1633
A18: 12 | C18: 1095 | D18: 4235 | E18: 14235 | F18: 87.6 | G18: 197.1 | I18: 14454 | J18: 0 | K18: 0 | L18: 0.4969693636 | M18: 7324.682359
A19: 13 | C19: 1095 | D19: 5330 | E19: 15330 | F19: 87.6 | G19: 197.1 | I19: 14454 | J19: 0 | K19: 0 | L19: 0.4688390222 | M19: 6910.077697
A20: 14 | C20: 1095 | D20: 6425 | E20: 16425 | F20: 87.6 | G20: 197.1 | I20: 14454 | J20: 0 | K20: 0 | L20: 0.4423009644 | M20: 6518.941224
A21: 15 | C21: 1095 | D21: 7520 | E21: 17520 | F21: 87.6 | G21: 197.1 | I21: 14454 | J21: 0 | K21: 0 | L21: 0.4172650607 | M21: 6149.944551
A22: 16 | C22: 1095 | D22: 8615 | E22: 18615 | F22: 87.6 | G22: 197.1 | I22: 14454 | J22: 0 | K22: 0 | L22: 0.3936462837 | M22: 5801.834482
A23: 17 | C23: 1095 | D23: 9710 | E23: 19710 | F23: 87.6 | G23: 197.1 | I23: 14454 | J23: 0 | K23: 0 | L23: 0.3713644186 | M23: 5473.428756
A24: 18 | C24: 1095 | D24: 805 | E24: 20805 | F24: 87.6 | G24: 197.1 | I24: 14454 | J24: 10200 | K24: 0 | L24: 0.3503437911 | M24: 8737.118704
A25: 19 | C25: 1095 | D25: 1900 | E25: 21900 | F25: 87.6 | G25: 197.1 | I25: 14454 | J25: 0 | K25: 0 | L25: 0.3305130105 | M25: 4871.332108
A26: 20 | C26: 1095 | D26: 2995 | E26: 22995 | F26: 87.6 | G26: 197.1 | I26: 14454 | J26: 0 | K26: 0 | L26: 0.3118047269 | M26: 4595.596328
A27: 21 | C27: 1095 | D27: 4090 | E27: 24090 | F27: 87.6 | G27: 197.1 | I27: 14454 | J27: 0 | K27: 0 | L27: 0.2941554027 | M27: 4335.468234
A28: 22 | C28: 1095 | D28: 5185 | E28: 25185 | F28: 87.6 | G28: 197.1 | I28: 14454 | J28: 0 | K28: 0 | L28: 0.2775050969 | M28: 4090.064372
A29: 23 | C29: 1095 | D29: 6280 | E29: 26280 | F29: 87.6 | G29: 197.1 | I29: 14454 | J29: 0 | K29: 0 | L29: 0.2617972612 | M29: 3858.551294
A30: 24 | C30: 1095 | D30: 7375 | E30: 27375 | F30: 87.6 | G30: 197.1 | I30: 14454 | J30: 0 | K30: 0 | L30: 0.2469785483 | M30: 3640.14273
L32: TOTAL COST | M32: =SUM(M6:M31) -> 243325.5255

Sheet 6 Hybrid (Solar & Generator)
A1: Year | B1: Hybrid (Solar + Generator) Present Worth (USD)
A3: 0 | B3: ='4 Solar (Hybrid)'!J6+'5 Generator (Hybrid)'!M6 -> 115238.7
A4: 1 | B4: ='4 Solar (Hybrid)'!J7+'5 Generator (Hybrid)'!M7 -> 15319.5283
A5: 2 | B5: ='4 Solar (Hybrid)'!J8+'5 Generator (Hybrid)'!M8 -> 14452.38519
A6: 3 | B6: ='4 Solar (Hybrid)'!J9+'5 Generator (Hybrid)'!M9 -> 13634.32565
A7: 4 | B7: ='4 Solar (Hybrid)'!J10+'5 Generator (Hybrid)'!M10 -> 12862.57137
A8: 5 | B8: ='4 Solar (Hybrid)'!J11+'5 Generator (Hybrid)'!M11 -> 12134.50129
A9: 6 | B9: ='4 Solar (Hybrid)'!J12+'5 Generator (Hybrid)'!M12 -> 13210.04408
A10: 7 | B10: ='4 Solar (Hybrid)'!J13+'5 Generator (Hybrid)'!M13 -> 10799.66295
A11: 8 | B11: ='4 Solar (Hybrid)'!J14+'5 Generator (Hybrid)'!M14 -> 10188.36127
A12: 9 | B12: ='4 Solar (Hybrid)'!J15+'5 Generator (Hybrid)'!M15 -> 15649.02591
A13: 10 | B13: ='4 Solar (Hybrid)'!J16+'5 Generator (Hybrid)'!M16 -> 9067.605264
A14: 11 | B14: ='4 Solar (Hybrid)'!J17+'5 Generator (Hybrid)'!M17 -> 8554.344589
A15: 12 | B15: ='4 Solar (Hybrid)'!J18+'5 Generator (Hybrid)'!M18 -> 8070.136404
A16: 13 | B16: ='4 Solar (Hybrid)'!J19+'5 Generator (Hybrid)'!M19 -> 8785.433786
A17: 14 | B17: ='4 Solar (Hybrid)'!J20+'5 Generator (Hybrid)'!M20 -> 7182.39267
A18: 15 | B18: ='4 Solar (Hybrid)'!J21+'5 Generator (Hybrid)'!M21 -> 6775.842142
A19: 16 | B19: ='4 Solar (Hybrid)'!J22+'5 Generator (Hybrid)'!M22 -> 6392.303907
A20: 17 | B20: ='4 Solar (Hybrid)'!J23+'5 Generator (Hybrid)'!M23 -> 6030.475384
A21: 18 | B21: ='4 Solar (Hybrid)'!J24+'5 Generator (Hybrid)'!M24 -> 9262.634391
A22: 19 | B22: ='4 Solar (Hybrid)'!J25+'5 Generator (Hybrid)'!M25 -> 5367.101624
A23: 20 | B23: ='4 Solar (Hybrid)'!J26+'5 Generator (Hybrid)'!M26 -> 5063.303418
A24: 21 | B24: ='4 Solar (Hybrid)'!J27+'5 Generator (Hybrid)'!M27 -> 5512.089845
A25: 22 | B25: ='4 Solar (Hybrid)'!J28+'5 Generator (Hybrid)'!M28 -> 4506.322017
A26: 23 | B26: ='4 Solar (Hybrid)'!J29+'5 Generator (Hybrid)'!M29 -> 4251.247186
A27: 24 | B27: ='4 Solar (Hybrid)'!J30+'5 Generator (Hybrid)'!M30 -> 4010.610553
A29: Total Cost for Hybrid | B29: =SUM(B3:B28) -> 332320.9492

Sheet 7 Graph
A1: Cumulative Cost
A3: Year | B3: Generator | C3: Hybrid (Solar+Generator)
A4: 0 (Capital costs) | B4: ='3 Generator System'!B6 -> 34000 | C4: ='6 Hybrid (Solar & Generator)'!B3 -> 115238.7
A5: 1 | B5: ='3 Generator System'!M6 -> 74777.07 | C5: =C4+'6 Hybrid (Solar & Generator)'!B4 -> 130558.2283
A6: 2 | B6: =B5+'3 Generator System'!M7 -> 113246.004 | C6: =C5+'6 Hybrid (Solar & Generator)'!B5 -> 145010.6135
A7: 3 | B7: =B6+'3 Generator System'!M8 -> 149537.4511 | C7: =C6+'6 Hybrid (Solar & Generator)'!B6 -> 158644.9391
A8: 4 | B8: =B7+'3 Generator System'!M9 -> 192338.7821 | C8: =C7+'6 Hybrid (Solar & Generator)'!B7 -> 171507.5105
A9: 5 | B9: =B8+'3 Generator System'!M10 -> 224638.0408 | C9: =C8+'6 Hybrid (Solar & Generator)'!B8 -> 183642.0118
A10: 6 | B10: =B9+'3 Generator System'!M11 -> 255109.0396 | C10: =C9+'6 Hybrid (Solar & Generator)'!B9 -> 196852.0559
A11: 7 | B11: =B10+'3 Generator System'!M12 -> 291045.8625 | C11: =C10+'6 Hybrid (Solar & Generator)'!B10 -> 207651.7188
A12: 8 | B12: =B11+'3 Generator System'!M13 -> 318164.9429 | C12: =C11+'6 Hybrid (Solar & Generator)'!B11 -> 217840.0801
A13: 9 | B13: =B12+'3 Generator System'!M14 -> 343748.9811 | C13: =C12+'6 Hybrid (Solar & Generator)'!B12 -> 233489.106
A14: 10 | B14: =B13+'3 Generator System'!M15 -> 373922.2305 | C14: =C13+'6 Hybrid (Solar & Generator)'!B13 -> 242556.7113
A15: 11 | B15: =B14+'3 Generator System'!M16 -> 396691.9334 | C15: =C14+'6 Hybrid (Solar & Generator)'!B14 -> 251111.0559
A16: 12 | B16: =B15+'3 Generator System'!M17 -> 436083.5611 | C16: =C15+'6 Hybrid (Solar & Generator)'!B15 -> 259181.1923
A17: 13 | B17: =B16+'3 Generator System'!M18 -> 456348.5156 | C17: =C16+'6 Hybrid (Solar & Generator)'!B16 -> 267966.6261
A18: 14 | B18: =B17+'3 Generator System'!M19 -> 475466.3972 | C18: =C17+'6 Hybrid (Solar & Generator)'!B17 -> 275149.0187
A19: 15 | B19: =B18+'3 Generator System'!M20 -> 498013.6045 | C19: =C18+'6 Hybrid (Solar & Generator)'!B18 -> 281924.8609
A20: 16 | B20: =B19+'3 Generator System'!M21 -> 515028.4511 | C20: =C19+'6 Hybrid (Solar & Generator)'!B19 -> 288317.1648
A21: 17 | B21: =B20+'3 Generator System'!M22 -> 531080.1931 | C21: =C20+'6 Hybrid (Solar & Generator)'!B20 -> 294347.6402
A22: 18 | B22: =B21+'3 Generator System'!M23 -> 546223.346 | C22: =C21+'6 Hybrid (Solar & Generator)'!B21 -> 303610.2746
A23: 19 | B23: =B22+'3 Generator System'!M24 -> 564082.846 | C23: =C22+'6 Hybrid (Solar & Generator)'!B22 -> 308977.3762
A24: 20 | B24: =B23+'3 Generator System'!M25 -> 577560.1981 | C24: =C23+'6 Hybrid (Solar & Generator)'!B23 -> 314040.6796
A25: 21 | B25: =B24+'3 Generator System'!M26 -> 590274.6813 | C25: =C24+'6 Hybrid (Solar & Generator)'!B24 -> 319552.7694
A26: 22 | B26: =B25+'3 Generator System'!M27 -> 605269.8619 | C26: =C25+'6 Hybrid (Solar & Generator)'!B25 -> 324059.0915
A27: 23 | B27: =B26+'3 Generator System'!M28 -> 616585.7066 | C27: =C26+'6 Hybrid (Solar & Generator)'!B26 -> 328310.3386
A28: 24 | B28: =B27+'3 Generator System'!M29 -> 636162.1388 | C28: =C27+'6 Hybrid (Solar & Generator)'!B27 -> 332320.9492
A29: 25 | B29: =B28+'3 Generator System'!M30 -> 646233.2003 | C29: =C28+'6 Hybrid (Solar & Generator)'!B28 -> 332320.9492
